Cogmind - Beta 16 @@@ ROGUE MODE // 2025.11.29 @ 19:57:08 Player: shapeshifter Result: Destroyed by MM-ZNZ(R) with Subdweller Shrapnel Launcher Performance ------------- Evolutions (0) 0 Regions Visited (2) 400 Robots Destroyed (29) 145 Value Destroyed (692) 692 Prototype IDs (14) 280 Alien Tech Used (0) 0 Bonus (0) 0 TOTAL SCORE: 1517 Bonus ------- None Cogmind --------- Core Integrity 0/250 Matter 242/300 Energy 315/315 System Corruption 0% Temperature Cool (0) Movement Walking (140) Location -10/Subcaves Parts ------- > --- POWER (1) -------- Neutrino Core > --- PROPULSION (2) --- Makeshift Leg Makeshift Leg > --- UTILITY (2) ------ Scrap Shield > --- WEAPON (2) ------- Subdweller Machine Gun Barrage Gun > --- INVENTORY (5) ---- Myomer Leg Humpback Gun Armor Multitool Peak State ------------ > --- POWER ------------ Neutrino Core > --- PROPULSION ------- Makeshift Leg Makeshift Leg > --- UTILITY ---------- Scrap Shield > --- WEAPON ----------- Subdweller Machine Gun Barrage Gun > --- INVENTORY -------- Myomer Leg Humpback Gun Armor Multitool [Rating: 25] Favorites ----------- Power Ion Engine Engine Ion Engine Power Core Neutrino Core Propulsion Subdweller Monowheel Treads Light Treads Leg Myomer Leg Wheel Subdweller Monowheel Utility Seismic Detector Device Seismic Detector Storage Large Storage Unit Protection Scrap Shield Weapon Light Cannon Ballistic Gun Assault Rifle Ballistic Cannon Light Cannon Build | -11 -10 -10 ------- Run | Yrd Mat Sub Slots Evolved . | . . . Power . | . . . Propulsion . | . . . Utility . | . . . Weapon . | . . . Parts Attached 24 | 7 2 15 Power 3 | 1 1 1 Engine 2 | 1 1 . Core 1 | . . 1 Reactor . | . . . Propulsion 9 | 2 . 7 Treads 2 | 2 . . Leg 3 | . . 3 Wheel 4 | . . 4 Hover . | . . . Flight . | . . . Utility 5 | 2 1 2 Device 2 | 1 . 1 Storage 2 | 1 1 . Processor . | . . . Hackware . | . . . Protection 1 | . . 1 Artifact . | . . . Weapon 7 | 2 . 5 Energy Gun . | . . . Energy Cannon . | . . . Ballistic Gun 5 | 2 . 3 Ballistic Cannon 2 | . . 2 Launcher . | . . . Special Weapon . | . . . Impact Weapon . | . . . Slashing Weapon . | . . . Piercing Weapon . | . . . Special Melee Weapon . | . . . Unidentified Prototypes . | . . . Parts Lost 7 | . . 7 Power 1 | . . 1 Propulsion 3 | . . 3 Utility 1 | . . 1 Weapon 2 | . . 2 Highest Loss Streak 3 | . . 3 To Critical Strikes 1 | . . 1 Average Backups 9 | 2 6 11 Power . | . 1 . Propulsion . | . . . Utility 3 | . 2 4 Weapon 3 | 1 1 4 Tool/Special . | . . . Unused Backups 14 | 1 . 13 Power . | . . . Propulsion 1 | 1 . . Utility 6 | . . 6 Weapon 5 | . . 5 Tool/Special 2 | . . 2 Average Slot Usage (%) 96 | . 98 95 Engine 11 | . 13 10 Core 2 | . . 3 Treads 7 | . 27 . Leg 7 | . . 10 Wheel 11 | . . 16 Device 11 | . 14 9 Storage 11 | . 14 10 Protection 2 | . . 3 Ballistic Gun 15 | . 27 11 Ballistic Cannon 11 | . . 16 Peak Build Rating 25 | 7 8 25 Average Rating 16 | 4 7 19 On Entrance 5 | . 7 8 Avg Prop Armor Cover (%) 3 | . . 3 Naked Turns . | . . . Heaviest Build 39 | 14 27 39 Greatest Support 40 | 40 40 40 Greatest Overweight (x) 8 | . 2 8 Average Overweight (x) . | . . . Largest Inventory Capacity 15 | 8 15 15 Average Capacity 11 | 7 10 12 Most Carried 15 | 6 9 15 Average Carried 9 | 2 6 11 Final Capacity 15 | 8 15 5 Final Carried 9 | 4 9 5 Class Distribution -------------------- 66% | Mutant 17% | Scavenger-Mutant 15% | Subdweller-Mutant Dominant Class ---------------- Mutant | -10/Materials Mutant | -10/Subcaves Resources | -11 -10 -10 ----------- Run | Yrd Mat Sub Matter Collected 1412 | 296 252 864 Remotely . | . . . Salvage Created 968 | 110 373 485 Parts 63 | 12 21 30 Haulers Intercepted 1 | . 1 . Recyclers Shooed 1 | . 1 . Parts Field Recycled . | . . . Retrieved Matter . | . . . Parts Self-Destructed 23 | . . 23 Prevented . | . . . Parts Restored . | . . . Kills | -11 -10 -10 ------- Run | Yrd Mat Sub Combat Hostiles Destroyed 20 | . 7 13 Guns 15 | . 7 8 Cannons 5 | . . 5 Classes Destroyed 7 | 2 4 1 Tunneler 3 | 3 . . Hauler 1 | . 1 . Recycler 2 | 1 1 . Watcher 3 | . 3 . Swarmer 6 | . 3 3 Grunt 4 | . 4 . Subdweller 10 | . . 10 Best Kill Streak 5 | 3 5 2 Combat Bots Only 5 | . 5 2 Max Kills in Single Turn 2 | 1 2 1 Gunslinging 1 | . 1 . Exploded . | . . . Melee . | . . . Uniques/NPCs Destroyed . | . . . Combat | -11 -10 -10 -------- Run | Yrd Mat Sub Hostile Shots Fired 112 | . 31 81 Missed 35 | . 11 24 Hits 77 | . 20 57 Projectile 77 | . 20 57 AOE 1 | . . 1 Critical Strikes 2 | . 1 1 Damage Taken 1339 | . 211 1128 Core 250 | . 50 200 Absorbed by Shields . | . . . Core Remaining (%) 100 | 100 . . Volleys Fired 145 | 10 37 98 Largest 2 | 2 2 2 Hottest 78 | 40 40 78 Shots Fired 276 | 20 74 182 Gun 188 | 20 74 94 Cannon 88 | . . 88 Launcher . | . . . Special . | . . . Kinetic 276 | 20 74 182 Thermal . | . . . Explosive . | . . . Electromagnetic . | . . . Robot Hit Streak 16 | 7 16 14 Robot Miss Streak 4 | 2 4 3 Penetration Max . | . . . Secondary Targets 3 | . 2 1 Max Gunslinging Chain 1 | . 1 1 Shots Hit Robots 147 | 15 48 84 Core Hits 54 | 7 19 28 Critical Kills 3 | . 1 2 Critical Parts Destroyed 1 | . 1 . Critical Strikes 11 | . 2 9 Destroy 11 | . 2 9 Melee Attacks . | . . . Impact . | . . . Slashing . | . . . Piercing . | . . . Sneak Attacks . | . . . Combat Hostiles . | . . . Follow-up Attacks . | . . . Damage Inflicted 2100 | 153 529 1418 Guns 1506 | 153 529 824 Cannons 594 | . . 594 Explosions . | . . . Melee . | . . . Ramming . | . . . Kinetic 2100 | 153 529 1418 Thermal . | . . . Explosive . | . . . Electromagnetic . | . . . Impact . | . . . Slashing . | . . . Piercing . | . . . Highest Corruption . | . . . Average Corruption . | . . . Corruption Purged . | . . . Corruption Blocked . | . . . Overload Shots . | . . . Overflow Damage . | . . . Projectiles . | . . . Explosions . | . . . Melee . | . . . Knockbacks 6 | . . 6 Impact . | . . . Kinetic 6 | . . 6 Secondary . | . . . Self-Inflicted Damage . | . . . Shots . | . . . Rammed . | . . . Targets Rammed . | . . . Kicked . | . . . Crushed . | . . . Highest Temperature 15 | . 15 . Average Temperature 8 | . 8 . Received Heat Transfer 288 | . 75 213 Siege Activations . | . . . Martial Activations . | . . . Shielding Activations . | . . . Robots Disrupted . | . . . Combat Hostiles . | . . . Robots Corrupted . | . . . Combat Hostiles . | . . . Parts Fried . | . . . Impact Corruptions . | . . . Robots Melted . | . . . Combat Hostiles . | . . . Parts Melted 1 | . . 1 Heat Transferred . | . . . Parts Sabotaged . | . . . Parts Stolen . | . . . Parts Stripped . | . . . Power Chain Reactions . | . . . Alert | -11 -10 -10 ------- Run | Yrd Mat Sub Maximum Alert Level . | . . . Low Security (%) 100 | 100 100 . Level 1 . | . . . Level 2 . | . . . Level 3 . | . . . Level 4 . | . . . Level 5 . | . . . High Security . | . . . Max Security . | . . . Peak Influence 120 | 15 120 . Initial . | . . . Average 25 | 2 28 . Influence Increases 333 | 20 243 70 Destroy 0b10 Robot/C 200 | . 140 60 Destroy 0b10 Robot/NC 45 | 20 25 . Destroy Leader 38 | . 28 10 Successful Hack 20 | . 20 . Select Force Hacks 30 | . 30 . Influence Decreases 317 | 20 243 54 Time Decay 317 | 20 243 54 Squads Dispatched 1 | . 1 . Investigation 1 | . 1 . Extermination . | . . . Reinforcement . | . . . Assault . | . . . Garrison . | . . . Intercept . | . . . Searches Triggered . | . . . Construction Impeded . | . . . Haulers Reinforced . | . . . Active Scanning Responses . | . . . Cargo Convoy Interrupts . | . . . Stealth | -11 -10 -10 --------- Run | Yrd Mat Sub Distress Signals . | . . . Communications Jammed . | . . . Distress Signals . | . . . Times Spotted 29 | . 14 15 Peak Tracking Total 3 | . 3 2 Tactical Retreats . | . . . Traps | -11 -10 -10 ------- Run | Yrd Mat Sub Traps Triggered 4 | . 3 1 Indirectly . | . . . Trap Hack Attempts . | . . . Triggered . | . . . Disarmed . | . . . Reprogrammed . | . . . Reused . | . . . Traps Extracted . | . . . Installed . | . . . Triggered . | . . . Machines | -11 -10 -10 ---------- Run | Yrd Mat Sub Machines Disabled 2 | . . 2 Max in Single Turn 1 | . . 1 Machines Repaired . | . . . Machines Dismantled . | . . . Machines Sabotaged . | . . . Overloaded Fab Kills . | . . . Hacking | -11 -10 -10 --------- Run | Yrd Mat Sub Machines Accessed 9 | . 7 2 Terminals 6 | . 6 . Fabricators . | . . . Repair Stations . | . . . Recycling Units 1 | . 1 . Scanalyzers . | . . . Garrison Access . | . . . Total Hacks 27 | . 23 4 Successful 18 | . 14 4 Failed 9 | . 9 . Catastrophic 1 | . 1 . Database Lockouts . | . . . Manual 22 | . 22 . Terminals 20 | . 20 . Fabricators . | . . . Repair Stations . | . . . Recycling Units 3 | . 3 . Scanalyzers . | . . . Garrison Access . | . . . Terminal Hacks 9 | . 5 4 Record 3 | . . 3 Prototype ID Bank 1 | . 1 . Branch Access Points 1 | . 1 . Terminal Index 1 | . 1 . Recall Investigation 1 | . 1 . Registered Components 1 | . 1 . Proto ID Catalog 1 | . . 1 Fabricator Hacks . | . . . Repair Station Hacks . | . . . Recycling Unit Hacks 1 | . 1 . Retrieve Components 1 | . 1 . Scanalyzer . | . . . Garrison Access Hacks . | . . . Unauthorized Hacks 8 | . 8 . Terminals 7 | . 7 . Botnet 1 | . 1 . Operators 1 | . 1 . Skim 5 | . 5 . Fabricators . | . . . Repair Stations . | . . . Recycling Units 1 | . 1 . Tunnel 1 | . 1 . Scanalyzers . | . . . Garrison Access . | . . . Data Cores Recovered . | . . . Used . | . . . Hacking Detections 5 | . 5 . Full Trace Events . | . . . Feedback Events . | . . . Feedback Blocked . | . . . Robot Schematics Acquired . | . . . Robots Built . | . . . Authchips . | . . . Time . | . . . Total Robot Build Rating . | . . . Part Schematics Acquired . | . . . Parts Built . | . . . Authchips . | . . . Time . | . . . Total Part Build Rating . | . . . Part Studies Acquired . | . . . Parts Repaired . | . . . Time . | . . . Parts Recycled . | . . . Recycled Matter . | . . . Retrieved Matter . | . . . Retrieved Components 2 | . 2 . Parts Scanalyzed . | . . . Part Schematics Acquired . | . . . Parts Damaged . | . . . Bothacking | -11 -10 -10 ------------ Run | Yrd Mat Sub Used RIF Installer . | . . . Robots Hacked . | . . . Non-combat . | . . . Combat . | . . . Robot Hacks Applied . | . . . Relay Couplers Released . | . . . Fabnet Peak Effective % . | . . . Robots Rewired . | . . . Allies Hacked . | . . . Hacks Repelled . | . . . Allies | -11 -10 -10 -------- Run | Yrd Mat Sub Total Allies . | . . . Largest Group . | . . . Highest-Rated Group . | . . . Highest-Rated Ally . | . . . Total Orders . | . . . Ally Attacks . | . . . Total Damage . | . . . Kills . | . . . Allies Corrupted . | . . . Allies Melted . | . . . Intel | -11 -10 -10 ------- Run | Yrd Mat Sub Active Infowar (turns) 2589 | 16 903 1670 Seismic 2589 | 16 903 1670 Robot Analysis Total . | . . . Derelict Logs Recovered 3 | . . 3 Drone Launches . | . . . Drone Recoveries . | . . . Exploration | -11 -10 -10 ------------- Run | Yrd Mat Sub Turns Passed 3367 | 110 903 2354 Spaces Moved 1680 | 45 427 1208 Core 13 | 11 1 1 Treads 463 | 34 426 3 Legs 835 | . . 835 Wheels 369 | . . 369 Hover . | . . . Flight . | . . . Fastest Speed 50 | 50 150 110 Average Speed 163 | 133 159 165 Slowest Speed 450 | 160 160 450 Overloaded Moves . | . . . Propulsion Burnouts . | . . . Robots Hopped . | . . . Potential Cave-ins . | . . . Cave-ins Triggered . | . . . Exploration Rate (%) 50 | 3 63 84 Regions Visited 2 Branch Regions 1 Pre-discovered Areas 3 | . 1 2 Known Exits Taken 1 | . 1 . Unknown Exits Taken 1 | 1 . . Scrap Searched 4 | . . 4 Spaces Dug 10 | . . 10 Terrain Destroyed 27 | . . 27 Melee . | . . . Projectile 27 | . . 27 AOE . | . . . Terrain Rammed . | . . . Walls Destroyed . | . . . Machines Disabled . | . . . Actions | -11 -10 -10 --------- Run | Yrd Mat Sub Total 2055 | 77 580 1398 Wait 127 | 4 94 29 Move 1678 | 44 426 1208 Hop . | . . . Pick Up 43 | 11 13 19 Fast Attach 4 | 1 . 3 Attach 22 | 6 7 9 Detach . | . . . Swap 7 | . 2 5 Drop 24 | 1 1 22 Fire 145 | 10 37 98 Melee . | . . . Ram . | . . . Kick . | . . . Crush . | . . . Escape Stasis . | . . . Rewire . | . . . Trap . | . . . Miscellaneous 5 | . . 5 Route ------- -11/Scrapyard -10/Materials (discovered 5 exits: *Mat x3 / *Min / *Sub) -10/Subcaves (discovered 2 exits: [*Mat x2]) History --------- Turn | Location | Event 6 | -11/Scrapyard | Discovered new exit (range 16) 111 | -11/Scrapyard | Entered Materials 268 | -10/Materials | Discovered new exit (range 15) 313 | -10/Materials | Build established: Mutant 567 | -10/Materials | Identified exit to Mines 623 | -10/Materials | Learned 4 Subcaves zone layouts 661 | -10/Materials | Discovered new exit (range 3) 667 | -10/Materials | Identified exit to Materials 723 | -10/Materials | Learned location of 2 exits from Mines 736 | -10/Materials | Learned 2 Storage zone layouts 739 | -10/Materials | Learned Materials stockpile data 740 | -10/Materials | Learned 4 Recycling zone layouts 757 | -10/Materials | Learned Materials stockpile data 783 | -10/Materials | Identified exit to Subcaves 1014 | -10/Materials | Entered Subcaves 1015 | -10/Subcaves | Approached by a straggling Scientist 1075 | -10/Subcaves | Lost 3 parts (2n1w) 1254 | -10/Subcaves | Shifting Twisted Machinery released Barrage Gun 1327 | -10/Subcaves | Shifting Twisted Machinery released Flamer 1333 | -10/Subcaves | Build established: Scavenger-Mutant 1527 | -10/Subcaves | Disturbed a concealed Subdweller 1594 | -10/Subcaves | Lost 3 parts (1p1n1u) 1647 | -10/Subcaves | Learned location of Mines (-8) 1755 | -10/Subcaves | Visited 4L-MR0's lab 1781 | -10/Subcaves | Found Gun Armor 1862 | -10/Subcaves | Build established: Mutant 2041 | -10/Subcaves | Core integrity fell below 50% 2138 | -10/Subcaves | Learned Materials garrison access intel 2266 | -10/Subcaves | A swath of the cavern ceiling suddenly collapsed 2431 | -10/Subcaves | Disturbed a concealed Subdweller 2637 | -10/Subcaves | Core integrity fell below 20% 2651 | -10/Subcaves | Shifting Twisted Machinery released Barrage Gun 2652 | -10/Subcaves | Shifting Twisted Machinery released Riot Gun 2716 | -10/Subcaves | Shifting Twisted Machinery released Sub. Laser 2864 | -10/Subcaves | Learned location of Zion (-7) 3061 | -10/Subcaves | Build established: Subdweller-Mutant 3106 | -10/Subcaves | Discovered new exit (range 12) 3237 | -10/Subcaves | Visited Clippyterm 3241 | -10/Subcaves | Learned Factory garrison access intel 3310 | -10/Subcaves | Discovered new exit (range 5) 3368 | -10/Subcaves | Destroyed by MM-ZNZ(R) with Subdweller Shrapnel Launcher Last Messages --------------- you like help? Data stored: Factory garrison access intel. >>Record "SUBCON Basin" It looks like you want to play with dangerous UFD tech. While I can't recommend taking subatomizers out of the Subcaves, I can warn that doing so is a one-way ticket to summoning unimaginable chaos on any area not hardened against them. That includes... just about anywhere. 03296_ Acquired 15 matter. 03298_ Dropped Sub. Monowheel. 03298_ Acquired Mak. Leg. 03308_ Acquired 12 matter. 03310_ EXIT=FOUND 03312_ Dropped Sub. Monowheel. 03313_ Acquired Mak. Leg. 03362_ 81-2N4(R) destroyed. 03366_ Scrap Shield Fragment affixed to Scrap Shield (+47). Map ----- +----------------------------------------------------+ | ????????????????????????????# % %% !" | | ????????????????????????????# ## #### ""*" | | ????????????????????????????## #?# ##??##" """ | | ?????????????????????????????###??# #?????# ## | | ??????????????????????????????????# #??????# ##? | | ??????????????????????????????????###??????# #?? | | ?????????????????????????????????????###### ### | | ?????????????????????????????????????# ## | | ?????????????????????????????????????# ## | | ?????????????????????????????????????# "# | | ????????????????????????????????????## " ## | | ?????????????????????????????###????# ### " ## | | ??######??###????????????##### #????# #?## | | ?## #??# ##?????###?? # # ##???# #??# | | ## #??# ##????# ?? #???## ##??# | | ## #??# ##??## ?? #???# ##### ## | | #?## #### ??### ##??## # # ## | | #### ## #???## #??## ## | | # ### #?# ###### ##?# # # # | | # #??# #?# R #?# #### #### ## | | #???# ##?# ### ##### ##?# ##### | | #?????# #?# ##?# #### "#??# | | ## #?????## #?# #?# ### ##??# | | ## ######## #?# !&## # ##?## "#### | | # = ## ## < #### *%#########???##### """ | | # ## ####!@ ##?????????????##"""" | | ! ## ## ### #??????????????#"""" | | #### ## ### #??????????????#""""" | | #####??# = #?# #####??????????????#"""" | | ##????# ! ## # #?????????????????#"""" # | | ###### #?????????????????#"""""# | | ### # ##???????????????????????? | | ##?# # # # ##????????????????????????? | | ##??# ####### ###?????????????????????????? | | ## ##???###?????# #???????????????????????????? | | ##?##????????????# #???????????????????????????? | | ##????????????????# ##???????????????????????????? | | ??????????????????# ?????????????????????????????? | | ?????????????????? #?????????????????????????????? | | ??????????????????#??????????????????????????????? | | ?????????????????????????????????????????????????? | | ?????????????????????????????????????????????????? | | ?????????????????????????????????????????????????? | | ?????????????????????????????????????????????????? | | ?????????????????????????????????????????????????? | | ?????????????????????????????????????????????????? | | #????????????????????????????????????????????????? | | ##???????????????????????????????????????????????? | | #???????????????????????????????????????????????? | | #?????????????????????? ???????????????????????# | +----------------------------------------------------+ Best States ------------- Heat Dissipation 25 Energy Generation 19 Energy Capacity 315 Matter Stores 300 Matter Capacity 300 Sight Range 16 Terrain Scan Density 10 Armor Coverage 800 Evasion (%) 50 Recoil Reduction 2 Item Schematics ----------------- None Robot Schematics ------------------ None Fabricated ------------ Nothing Repaired ---------- Nothing Studied --------- None Alien Tech Used ----------------- None Achievements -------------- None Challenges ------------ None Game ------ Seed SuperdenseMasterSpecial Manual? 0 Play Time 00:17:29 Cumulative 570.4 hours Start 2025.11.29 @ 19:44:11 End 2025.11.29 @ 19:57:08 Sessions 1 Manual Loads 0 Difficulty Rogue Special Mode None Game No. 736 Rogue 736 Adventurer 0 Explorer 0 Win Type - Total 21 Types 10/1/2/2/2/0/2/2/0/0 Lore% 93 Gallery% 87 Achievement% 73 Wizard Run 0 Options --------- Layout 2 ASCII 0 Keyboard 0 Movement Mouse Keybinds 0 Fullscreen 1 Font 24/Terminus Map View 50x44 Zoom Use 0% Tactical HUD 1 Map Filters NONE Filters NONE Steam 1 RUN: b16843b4-0997-4d37-a27a-bd452861a0da